bitfinex/quotes_BTCUSD_20220204
["timestamp","ask_amount","ask_price","bid_price","bid_amount"]
[1643977769307,1.618e-05,38003.0,38002.0,0.69416272]
[1643977769509,0.00235829,38004.0,38002.0,0.69416272]
[1643977769707,0.00235829,38004.0,38003.0,0.25982132]
[1643977769909,0.002,38004.0,38003.0,0.346893]
[1643977772643,0.002,38004.0,38003.0,0.396893]
[1643977772844,0.002,38004.0,38003.0,0.346893]
[1643977773245,0.31223587,38017.0,38010.0,0.07551629]
[1643977773446,0.346893,38013.0,38011.0,0.05]
[1643977773946,0.4211,38014.0,38011.0,0.05]
[1643977774146,0.4211,38014.0,38013.0,0.05]
[1643977774147,1.167993,38014.0,38013.0,0.05]
[1643977774350,0.26324,38013.0,38010.0,0.12551629]
[1643977774548,0.346893,38013.0,38010.0,0.12551629]
[1643977775802,0.346893,38013.0,38010.0,0.07551629]
[1643977776401,0.346893,38013.0,38012.0,0.05]
[1643977776601,0.4211,38014.0,38012.0,0.05]
[1643977777407,0.4211,38014.0,38010.0,0.12551629]
[1643977778003,0.4211,38014.0,38013.0,0.05]
[1643977778203,0.4211,38014.0,38010.0,0.12551629]
[1643977778703,0.4211,38014.0,38013.0,0.05]
[1643977779043,0.4211,38014.0,38010.0,0.12551629]
[1643977779044,0.767993,38014.0,38010.0,0.12551629]
[1643977779244,0.4211,38014.0,38010.0,0.12551629]
[1643977779445,0.4211,38014.0,38012.0,0.05]
[1643977779650,0.42211756,38014.0,38010.0,0.12551629]
[1643977780247,0.42211756,38014.0,38010.0,0.05]
[1643977780446,0.42211756,38014.0,38009.0,0.00799308]
[1643977780645,0.4211,38014.0,38009.0,0.00799308]
[1643977780845,0.42211756,38014.0,38009.0,0.00799308]
[1643977781246,0.346893,38013.0,38008.0,0.05]
[1643977781446,0.346893,38013.0,38006.0,0.26040786]
[1643977782045,0.00101759,38011.0,38006.0,0.26040786]
[1643977782249,0.00101759,38011.0,38009.0,0.05]
[1643977782445,0.00101759,38011.0,38010.0,0.346893]
[1643977783093,0.4211,38014.0,38010.0,0.346893]
[1643977783294,0.4211,38014.0,38009.0,0.05]
[1643977783494,0.00101758,38012.0,38009.0,0.05]
[1643977783695,0.26324,38011.0,38008.0,0.05]
[1643977783993,0.00101758,38012.0,38010.0,0.05]
[1643977784195,0.4211,38014.0,38011.0,0.60757822]
[1643977784494,0.4211,38014.0,38013.0,0.05]
[1643977784693,0.4211,38014.0,38013.0,0.446893]
[1643977784897,0.4211,38014.0,38013.0,0.396893]
[1643977785095,0.4211,38014.0,38013.0,0.95746906]
[1643977785295,0.0022,38017.0,38013.0,0.95746906]
[1643977785494,0.0022,38017.0,38014.0,0.346893]
[1643977785695,0.0122,38019.0,38014.0,0.346893]
[1643977785696,0.00406954,38021.0,38016.0,0.09307573]
[1643977785900,0.19727577,38026.0,38021.0,0.35]
[1643977786101,0.02153302,38025.0,38022.0,0.68120622]
[1643977786301,0.0011,38037.0,38027.0,0.3]
[1643977786548,0.0011,38037.0,38030.0,0.396893]
[1643977786944,0.0011,38037.0,38030.0,0.496893]
[1643977787345,0.0111,38039.0,38032.0,1.05]
[1643977787346,0.00758906,38039.0,38032.0,1.05]
[1643977787552,0.0032,38040.0,38035.0,0.05]
[1643977787747,0.0032,38040.0,38033.0,0.56391193]
[1643977787748,0.21933798,38039.0,38036.0,0.0525]
[1643977787946,0.00035874,38039.0,38036.0,0.0525]
[1643977788146,0.21782732,38039.0,38036.0,0.0525]
[1643977788346,0.846893,38038.0,38037.0,0.09307433]
[1643977788649,0.846893,38038.0,38036.0,0.0525]
[1643977788845,0.25292016,38030.0,38027.0,0.87544663]
[1643977789047,0.25292016,38030.0,38029.0,0.399393]
[1643977789254,0.00035874,38037.0,38029.0,0.399393]
[1643977789547,0.346893,38036.0,38033.0,0.09771418]
[1643977789745,0.346893,38035.0,38033.0,0.09771418]
[1643977789947,0.26324,38036.0,38033.0,0.09771418]
[1643977790151,0.26324,38035.0,38033.0,0.09771418]
[1643977790431,0.2326506,38034.0,38033.0,0.09771418]
[1643977790633,0.62038778,38034.0,38030.0,0.58357007]
[1643977790931,0.00035874,38035.0,38031.0,0.346583]
[1643977791131,0.05,38032.0,38031.0,0.346583]
[1643977791534,0.05,38032.0,38030.0,0.58357007]
[1643977791735,0.05,38032.0,38030.0,0.60245416]
[1643977791932,1.26789744,38031.0,38030.0,0.60245416]
[1643977792131,0.92131444,38031.0,38030.0,0.60245416]
[1643977793332,1.26789744,38031.0,38030.0,0.60245416]
[1643977793532,0.47991244,38031.0,38030.0,0.60245416]
[1643977793933,0.47991244,38031.0,38030.0,0.58357007]
[1643977794552,0.9606202,38031.0,38030.0,0.58357007]
[1643977794750,0.7020222,38031.0,38030.0,0.58357007]
[1643977794953,0.99208515,38031.0,38030.0,0.58357007]
[1643977795150,1.61039273,38031.0,38030.0,0.58357007]
[1643977795353,0.71380973,38031.0,38030.0,0.58357007]
[1643977795652,0.78866815,38031.0,38030.0,0.58357007]
[1643977796250,1.04463129,38031.0,38030.0,0.58357007]
[1643977796850,0.44208515,38031.0,38030.0,0.58357007]
[1643977797050,0.84116815,38031.0,38030.0,0.58357007]
[1643977797451,0.49458515,38031.0,38030.0,0.58357007]
[1643977797650,0.62039744,38031.0,38030.0,0.58357007]
[1643977798698,0.399083,38031.0,38030.0,0.58357007]
[1643977798898,0.346583,38031.0,38030.0,0.58357007]
[1643977800898,0.258598,38031.0,38030.0,0.58357007]
[1643977801751,0.308598,38031.0,38030.0,0.58357007]
[1643977802751,0.00101988,38032.0,38030.0,0.93015307]
[1643977802950,0.00101988,38032.0,38031.0,0.35457068]
[1643977803155,0.05101988,38032.0,38031.0,0.35457068]
[1643977803551,0.05,38032.0,38031.0,0.35457068]
[1643977803954,0.05,38032.0,38030.0,0.58357007]
[1643977803955,0.74509997,38032.0,38030.0,0.58357007]
[1643977804155,0.708598,38031.0,38030.0,0.58357007]
[1643977804551,0.258598,38031.0,38030.0,0.58357007]
[1643977804956,0.708598,38031.0,38030.0,0.58357007]
[1643977805998,0.258598,38031.0,38030.0,0.58357007]
[1643977807000,0.5155151,38031.0,38030.0,0.58357007]
[1643977807198,0.5155151,38031.0,38030.0,0.68357007]
[1643977807998,0.258598,38031.0,38030.0,0.68357007]
[1643977809546,0.45853644,38031.0,38030.0,0.68357007]
[1643977809745,1.00847488,38031.0,38030.0,0.68357007]
[1643977809945,1.09645988,38031.0,38030.0,0.68357007]
[1643977810147,3.11902598,38031.0,38030.0,0.68357007]
[1643977810344,0.74645988,38031.0,38030.0,0.68357007]
[1643977811047,0.73279608,38031.0,38030.0,0.68357007]
[1643977811346,0.82078108,38031.0,38030.0,0.68357007]
[1643977811544,0.47419808,38031.0,38030.0,0.68357007]
[1643977811750,0.82078108,38031.0,38030.0,0.68357007]
[1643977811948,1.45,38030.0,38025.0,0.0191405]
[1643977812151,1.96314904,38026.0,38025.0,0.0191405]
[1643977812349,1.96314904,38026.0,38019.0,0.00102024]
[1643977812350,1.06438729,38020.0,38019.0,0.00102024]
[1643977812648,1.06076291,38020.0,38019.0,0.00102024]
[1643977813108,1.06076291,38020.0,38012.0,0.08456802]
[1643977813310,0.34694174,38019.0,38018.0,0.00102013]
[1643977813613,0.69440672,38019.0,38018.0,0.00102013]
[1643977813810,0.449083,38019.0,38018.0,0.00102013]
[1643977814012,0.1025,38019.0,38018.0,0.00102013]
[1643977814211,0.1025,38019.0,38008.0,0.05]
[1643977814411,0.1025,38019.0,38017.0,0.00102015]
[1643977814810,0.3844658,38019.0,38017.0,0.00102015]
[1643977815013,0.346583,38018.0,38017.0,0.00102015]
[1643977815413,0.346583,38018.0,38008.0,0.05]
[1643977815614,0.00035874,38018.0,38016.0,0.00102016]
[1643977815915,0.346583,38017.0,38016.0,0.00102016]
[1643977816552,0.396583,38017.0,38016.0,0.00102016]
[1643977816742,0.396583,38017.0,38013.0,0.08402164]
[1643977816942,0.34694174,38017.0,38015.0,0.00102017]
[1643977817142,0.05,38016.0,38015.0,0.00102017]
[1643977817841,0.308598,38016.0,38010.0,0.01900898]
[1643977818043,0.00035874,38016.0,38014.0,0.00102019]
[1643977818242,0.3344658,38019.0,38014.0,0.00102019]
[1643977818243,0.00035874,38017.0,38014.0,0.00102019]
[1643977818543,0.05,38015.0,38014.0,0.00102019]
[1643977818746,0.3344658,38019.0,38014.0,0.08997069]
[1643977818945,0.05,38015.0,38014.0,0.08997069]
[1643977819245,0.396583,38015.0,38010.0,0.01900898]
[1643977819448,0.05,38015.0,38011.0,0.346583]
[1643977819944,0.39987688,38013.0,38011.0,0.346583]
[1643977821999,0.05,38012.0,38011.0,0.346583]
[1643977822198,0.05,38012.0,38010.0,0.00102024]
[1643977822199,0.1025,38012.0,38010.0,0.00102024]
[1643977822398,0.1025,38012.0,38007.0,0.02157339]
[1643977822596,0.0525,38012.0,38007.0,0.02157339]
[1643977822797,0.05,38008.0,38007.0,0.36815639]
[1643977823297,0.29289395,38009.0,38007.0,0.36815639]
[1643977823699,0.05,38008.0,38007.0,0.36815639]
[1643977824144,0.05,38008.0,38007.0,0.346583]
[1643977824746,0.016583,38008.0,38006.0,0.00051819]
[1643977824946,0.0525,38012.0,38007.0,0.43824557]
[1643977825146,0.0525,38012.0,38008.0,0.05]
[1643977825346,0.0525,38012.0,38009.0,0.346739]
[1643977825545,0.0525,38012.0,38010.0,0.05]
[1643977825945,0.33494485,38012.0,38010.0,0.05]
[1643977826745,0.275156,38011.0,38010.0,0.05]
[1643977829894,0.61644629,38011.0,38005.0,0.03672842]
[1643977830097,0.25853774,38010.0,38008.0,0.00101951]
[1643977830294,0.5,38009.0,38008.0,0.00101951]
[1643977830496,0.275156,38009.0,38008.0,0.00101951]
[1643977831094,0.275156,38009.0,38005.0,0.01845492]
[1643977831294,0.275156,38008.0,38007.0,0.00101952]
[1643977832342,0.35609506,38009.0,38003.0,0.346739]
[1643977832543,0.275156,38008.0,38006.0,0.00101953]
[1643977833543,0.275156,38008.0,38004.0,0.05]
[1643977833745,0.275156,38008.0,38005.0,0.00101954]
[1643977833943,0.275156,38008.0,38004.0,0.04601954]
[1643977834144,0.00398046,38005.0,38001.0,0.06443843]
[1643977834349,0.18808834,38006.0,38003.0,0.0836967]
[1643977834546,0.18808834,38006.0,38004.0,0.346739]
[1643977834748,0.18808834,38006.0,37999.0,0.05]
[1643977834749,0.275156,38005.0,37999.0,0.05]
[1643977834950,0.18808834,38006.0,38000.0,0.346739]
[1643977834951,0.35557547,38001.0,38000.0,0.346739]
[1643977835150,0.35557547,38001.0,37995.0,0.2808274]
[1643977835151,0.0525,38001.0,37995.0,0.2808274]
[1643977835695,0.27325729,37997.0,37995.0,0.05]
[1643977835892,0.27325729,37997.0,37994.0,0.2808274]
[1643977836194,0.27325729,37997.0,37996.0,0.0005168]
[1643977836392,0.39987688,37999.0,37996.0,0.0505168]
[1643977836594,0.39987688,37999.0,37998.0,0.05]
[1643977836793,0.67503288,37999.0,37998.0,0.05]
[1643977836995,0.39987688,37999.0,37998.0,0.05]
[1643977837192,0.39987688,37999.0,37998.0,0.396739]
[1643977837593,0.39987688,37999.0,37998.0,0.49750851]
[1643977837794,0.39987688,37999.0,37998.0,1.13677663]
[1643977837997,0.18599687,37999.0,37998.0,0.85594923]
[1643977838291,0.18599687,37999.0,37998.0,0.54750851]
[1643977838493,0.18599687,37999.0,37998.0,0.59750851]
[1643977838692,0.18599687,37999.0,37998.0,0.82896916]
[1643977838891,0.18599687,37999.0,37998.0,0.54750851]
[1643977839549,0.18599687,37999.0,37998.0,0.88450139]
[1643977839745,0.18599687,37999.0,37998.0,0.54750851]
[1643977840347,0.18599687,37999.0,37998.0,0.82898316]
[1643977840545,0.18599687,37999.0,37998.0,0.49750851]
[1643977840746,0.23805913,38004.0,37999.0,0.346739]
[1643977840945,0.275156,38008.0,38003.0,0.05]
[1643977841148,0.275156,38008.0,38007.0,0.09843816]
[1643977841348,0.62402796,38008.0,38007.0,0.09843816]
[1643977841550,0.62402796,38008.0,38006.0,0.05]
[1643977842151,0.27826301,38007.0,38006.0,0.05]
[1643977842348,0.55341901,38007.0,38006.0,0.05]
[1643977842649,0.8091422,38007.0,38006.0,0.1282133]
[1643977842902,0.00101866,38009.0,38006.0,0.1782133]
[1643977843101,0.25689846,38016.0,38007.0,0.05]
[1643977843299,0.275156,38015.0,38007.0,0.05]
[1643977843502,0.00101865,38009.0,38007.0,0.05]
[1643977843700,0.00101865,38009.0,38008.0,0.346739]
[1643977844401,0.2882314,38010.0,38008.0,0.346739]
[1643977844604,0.28925005,38010.0,38009.0,0.05]
[1643977845203,0.28925005,38010.0,38009.0,0.396739]
[1643977845503,0.1217,38018.0,38009.0,0.396739]
[1643977845705,0.00035874,38020.0,38017.0,0.05]
[1643977846004,0.00101864,38011.0,38010.0,0.59398939]
[1643977846202,0.00101864,38011.0,38010.0,0.59399139]
[1643977846403,0.00101864,38011.0,38010.0,0.57823939]
[1643977846843,0.18599687,38014.0,38012.0,0.346739]
[1643977847046,0.18599687,38014.0,38013.0,0.05]
[1643977848443,0.18599687,38014.0,38011.0,0.05]
[1643977848645,0.18599687,38014.0,38010.0,0.05]
[1643977848843,0.18599687,38014.0,38008.0,0.01857633]
[1643977849245,0.18599687,38014.0,38009.0,0.05]
[1643977849443,0.27617462,38013.0,38009.0,0.05]
[1643977850299,0.24447113,38010.0,38009.0,0.05]
[1643977850499,0.24447113,38010.0,38009.0,0.396739]
[1643977850698,0.55782051,38010.0,38009.0,0.346739]
[1643977851600,0.74381738,38010.0,38009.0,0.346739]
[1643977852401,0.14014784,38010.0,38009.0,0.396739]
[1643977852604,0.45244027,38010.0,38009.0,0.396739]
[1643977853200,0.45244027,38010.0,38009.0,0.346739]
[1643977853402,0.45244027,38010.0,38006.0,0.22497863]
[1643977853403,0.72759627,38010.0,38006.0,0.22497863]
[1643977853600,0.72759627,38010.0,38009.0,0.05]
[1643977854050,0.45244027,38010.0,38007.0,0.22497863]
[1643977854249,0.45244027,38010.0,38008.0,0.346739]
[1643977854644,0.53758573,38009.0,38008.0,0.346739]
[1643977854849,0.53758573,38009.0,38004.0,0.02078168]
[1643977855049,0.0525,38008.0,38004.0,0.02078168]
[1643977855253,0.64949586,38007.0,38004.0,0.02078168]
[1643977855549,1.325156,38005.0,38004.0,0.02078168]
[1643977855747,1.377656,38005.0,38004.0,0.02078168]
[1643977855948,0.327656,38005.0,38004.0,0.02078168]
[1643977856345,0.327656,38005.0,38003.0,0.05]
[1643977856548,0.327656,38005.0,38003.0,0.05101881]
[1643977856746,0.14014784,38004.0,38003.0,0.05101881]
[1643977857046,0.32032717,38004.0,38003.0,0.05101881]
[1643977857246,0.0525,38004.0,38003.0,0.39775781]
[1643977857446,0.0525,38004.0,38003.0,0.396739]
[1643977857649,0.31229243,38010.0,38003.0,0.396739]
[1643977857650,0.31229243,38010.0,38004.0,0.346765]
[1643977857898,0.00101861,38009.0,38004.0,0.57174363]
[1643977858697,0.00101861,38009.0,38007.0,0.05]
[1643977858698,0.26374456,38008.0,38007.0,0.05]
[1643977859395,0.26374456,38008.0,38007.0,0.04]
[1643977859597,0.27374456,38008.0,38007.0,0.04]
[1643977860399,0.27374456,38008.0,38005.0,0.22497863]
[1643977860598,0.27374456,38008.0,38007.0,0.04]
[1643977860997,0.01,38008.0,38007.0,0.04]
[1643977861198,0.31229243,38010.0,38007.0,0.386765]
[1643977861396,0.31229243,38010.0,38007.0,0.61174363]
[1643977861653,0.01,38008.0,38007.0,0.346765]
[1643977861854,0.01,38008.0,38007.0,0.61174363]
[1643977862251,0.01,38008.0,38007.0,0.26497863]
[1643977862453,0.01,38008.0,38007.0,0.04]
[1643977863654,0.19155191,38009.0,38007.0,0.04]
[1643977863863,0.00096262,38009.0,38008.0,1.28416311]
[1643977864056,0.00096262,38009.0,38008.0,1.45594948]
[1643977864255,0.00096262,38009.0,38008.0,1.346765]
[1643977864755,0.01,38016.0,38012.0,0.09357556]
[1643977864956,0.267824,38015.0,38012.0,0.38429982]
[1643977865156,0.267824,38015.0,38012.0,0.48429982]
[1643977865699,0.267824,38015.0,38014.0,0.04]
[1643977866098,0.267824,38015.0,38013.0,0.05]
[1643977866497,0.01096253,38016.0,38014.0,0.04]
[1643977866695,0.01096253,38016.0,38013.0,0.05]
[1643977866696,0.01096253,38016.0,38015.0,0.346765]
[1643977866896,2.64262758,38022.0,38015.0,0.346765]
[1643977867199,0.26599636,38020.0,38015.0,0.346765]
[1643977867596,0.26599636,38020.0,38018.0,0.07977907]
[1643977867797,0.26599636,38020.0,38019.0,0.346765]
[1643977868196,0.2315962,38021.0,38013.0,0.52805322]
[1643977868400,0.00035874,38023.0,38014.0,0.41251956]
[1643977868598,0.24448655,38019.0,38016.0,0.346765]
[1643977869849,0.00096767,38019.0,38017.0,0.22834546]
[1643977870248,0.00096767,38019.0,38018.0,0.346765]
[1643977870648,0.00035874,38024.0,38018.0,0.346765]
[1643977870849,0.00035874,38024.0,38020.0,0.0743087]
[1643977870850,0.30108934,38024.0,38020.0,0.0743087]
[1643977871053,0.30108934,38024.0,38017.0,0.22707144]
[1643977871054,0.30144808,38024.0,38017.0,0.22707144]
[1643977871249,0.30144808,38024.0,38016.0,0.065756]
[1643977871449,0.30108934,38024.0,38017.0,0.346765]
[1643977872249,0.0009666,38022.0,38017.0,0.346765]
[1643977872450,0.22760746,38018.0,38017.0,0.346765]
[1643977872897,0.0009666,38022.0,38017.0,0.346765]
[1643977873099,0.00035874,38025.0,38017.0,0.346765]
[1643977873298,0.00096662,38021.0,38016.0,0.10275413]
[1643977873498,0.00096662,38021.0,38017.0,0.346765]
[1643977874299,0.28007646,38022.0,38017.0,0.346765]
[1643977874499,0.00096662,38021.0,38017.0,0.346765]
[1643977874700,0.00096662,38021.0,38019.0,0.05]
[1643977875504,0.28007646,38022.0,38019.0,0.05]
[1643977875702,0.28104314,38022.0,38019.0,0.05]
[1643977876305,0.28104314,38022.0,38020.0,0.346765]
[1643977876554,0.28104314,38022.0,38016.0,0.07164066]
[1643977876746,0.28007646,38022.0,38019.0,0.05]
[1643977878148,0.28104313,38022.0,38019.0,0.05]
[1643977879148,0.28007646,38022.0,38019.0,0.05]
[1643977879348,0.28104313,38022.0,38019.0,0.05]
[1643977880148,0.28104313,38022.0,38019.0,0.053419]
[1643977880396,0.28007646,38022.0,38019.0,0.053419]
[1643977880595,0.28104313,38022.0,38019.0,0.053419]
[1643977881397,0.28104313,38022.0,38019.0,0.003419]
[1643977881701,0.28104313,38022.0,38019.0,0.053419]
[1643977882299,0.28104313,38022.0,38016.0,0.01808596]
[1643977882498,0.28104313,38022.0,38014.0,0.07152985]
[1643977882697,0.05,38016.0,38015.0,0.346765]
[1643977882901,0.05,38016.0,38015.0,0.57800928]
[1643977883898,0.28007646,38022.0,38015.0,0.66787571]
[1643977884149,0.00096672,38018.0,38015.0,0.66787571]
[1643977884453,0.00096672,38018.0,38015.0,0.43663143]
[1643977884646,0.05,38016.0,38015.0,0.346765]
[1643977886749,0.00096672,38018.0,38015.0,0.62173126]
[1643977886951,0.00096672,38018.0,38017.0,0.05]
[1643977887148,0.00096672,38018.0,38017.0,0.396765]
[1643977887549,0.00135874,38026.0,38017.0,0.05]
[1643977887797,0.00135874,38026.0,38019.0,0.05]
[1643977887798,0.25799376,38026.0,38019.0,0.05]
[1643977888096,0.00135874,38026.0,38019.0,0.05]
[1643977888497,0.29922485,38024.0,38019.0,0.05]
[1643977888696,0.29922485,38024.0,38021.0,0.09444579]
[1643977888897,0.00096666,38023.0,38019.0,0.05]
[1643977889196,0.00096666,38023.0,38020.0,0.346765]
[1643977889997,0.29922485,38024.0,38019.0,0.05]
[1643977890197,0.00096738,38023.0,38020.0,0.346765]
[1643977891097,0.29922485,38024.0,38020.0,0.346765]
[1643977891398,0.00096738,38023.0,38020.0,0.346765]
[1643977892453,0.29922485,38024.0,38020.0,0.346765]
[1643977892652,0.00096738,38023.0,38020.0,0.346765]
[1643977893554,0.29922485,38024.0,38020.0,0.346765]
[1643977893755,0.0009666,38023.0,38020.0,0.346765]
[1643977894758,0.29922485,38024.0,38020.0,0.346765]
[1643977894954,0.0009666,38023.0,38020.0,0.346765]
[1643977895998,0.29922485,38024.0,38020.0,0.346765]
[1643977896201,0.0009666,38023.0,38020.0,0.346765]
[1643977897198,0.29922485,38024.0,38020.0,0.346765]
[1643977897402,0.00096666,38023.0,38020.0,0.346765]
[1643977898400,0.29922485,38024.0,38020.0,0.346765]
[1643977898603,0.00096666,38023.0,38020.0,0.346765]
[1643977899451,0.29922485,38024.0,38020.0,0.346765]
[1643977899850,0.00096666,38023.0,38020.0,0.346765]
[1643977900653,0.29922485,38024.0,38020.0,0.346765]
[1643977901060,0.00096665,38023.0,38020.0,0.346765]
[1643977901858,0.29922485,38024.0,38020.0,0.346765]
[1643977902256,0.00096665,38023.0,38020.0,0.346765]
[1643977903203,0.29922485,38024.0,38020.0,0.346765]
[1643977903405,0.00096665,38023.0,38020.0,0.346765]
[1643977904405,0.29922485,38024.0,38020.0,0.346765]
[1643977904706,0.00096665,38023.0,38020.0,0.346765]
[1643977904906,0.33750647,38022.0,38016.0,0.34696082]
[1643977905111,0.00096665,38023.0,38014.0,0.28120782]
[1643977905112,0.0525,38021.0,38014.0,0.28120782]
[1643977905313,0.02026657,38019.0,38012.0,123.9]
[1643977906007,0.02026657,38019.0,38013.0,0.08455235]
[1643977906008,0.29771261,38014.0,38013.0,0.08455235]
[1643977906409,0.29771261,38014.0,38012.0,123.9]
[1643977907247,0.5524942,38014.0,38012.0,123.9]
[1643977907447,0.346634,38013.0,38012.0,123.9]
[1643977909253,0.065783,38014.0,38012.0,123.9]
[1643977909452,1.149134,38013.0,38012.0,123.9]
[1643977910153,0.499134,38013.0,38012.0,123.9]
[1643977910405,0.43341383,38013.0,38012.0,123.9]
[1643977911099,0.44341383,38013.0,38012.0,123.9]
[1643977911303,0.131577,38014.0,38013.0,0.43088516]
[1643977911500,0.44665934,38014.0,38013.0,0.43088516]
[1643977911700,0.79665934,38014.0,38013.0,0.43088516]
[1643977912500,0.44665934,38014.0,38012.0,123.72712381]
[1643977912700,0.52431248,38013.0,38012.0,123.72712381]
[1643977912904,0.57681248,38013.0,38012.0,123.72712381]
[1643977914250,0.320467,38013.0,38012.0,123.72712381]
[1643977914748,0.57507479,38013.0,38012.0,123.72712381]
[1643977917353,0.72507479,38013.0,38012.0,123.72712381]
[1643977917554,0.82507479,38013.0,38012.0,123.72712381]
[1643977917796,0.77507479,38013.0,38012.0,123.72712381]
[1643977918199,0.520467,38013.0,38012.0,123.72712381]
[1643977918500,0.93771094,38013.0,38012.0,122.9723904]
[1643977918698,0.75658461,38013.0,38012.0,122.9723904]
[1643977918898,0.93771094,38013.0,38012.0,122.9723904]
[1643977919097,0.75658461,38013.0,38012.0,122.9723904]
[1643977919498,0.75654209,38013.0,38012.0,122.9723904]
[1643977919698,0.630467,38013.0,38012.0,122.9723904]
[1643977919899,0.85651715,38013.0,38012.0,122.9723904]
[1643977920097,0.75651715,38013.0,38012.0,122.9723904]
[1643977920898,1.01579775,38013.0,38012.0,122.9723904]
[1643977921302,0.93765135,38013.0,38012.0,122.9723904]
[1643977921560,0.85651715,38013.0,38012.0,122.9723904]
[1643977921747,0.80651715,38013.0,38012.0,122.9723904]
[1643977922046,0.98765135,38013.0,38012.0,122.9723904]
[1643977922246,0.93765135,38013.0,38012.0,122.9723904]
[1643977922647,0.75651715,38013.0,38012.0,122.9723904]
[1643977922847,0.630467,38013.0,38012.0,122.9723904]
[1643977923048,0.530467,38013.0,38012.0,122.9723904]
[1643977923251,0.8116012,38013.0,38012.0,122.9723904]
[1643977923448,0.630467,38013.0,38012.0,122.9723904]
[1643977923651,0.8116012,38013.0,38012.0,122.9723904]
[1643977923847,1.06786177,38013.0,38012.0,122.9723904]
[1643977924250,0.8116012,38013.0,38012.0,122.9723904]
[1643977925304,0.7116012,38013.0,38012.0,122.9723904]
[1643977925706,0.530467,38013.0,38012.0,122.9723904]
[1643977926107,0.630467,38013.0,38012.0,122.9723904]
[1643977927308,0.530467,38013.0,38012.0,122.9723904]
[1643977928908,0.630467,38013.0,38012.0,122.9723904]
[1643977929173,0.530467,38013.0,38012.0,122.9723904]
[1643977929373,0.630467,38013.0,38012.0,122.9723904]
[1643977930473,0.530467,38013.0,38012.0,122.9723904]
[1643977930674,0.37851416,38014.0,38012.0,122.9723904]
[1643977930876,0.35762215,38016.0,38013.0,0.26270452]
[1643977930877,0.184072,38016.0,38013.0,0.26270452]
[1643977931178,0.00101831,38018.0,38012.0,122.9723904]
[1643977931874,0.00101831,38018.0,38015.0,0.24671431]
[1643977932073,0.065779,38019.0,38015.0,0.24671431]
[1643977932274,0.00101835,38018.0,38015.0,0.24671431]
[1643977932478,0.00101835,38018.0,38016.0,0.26270452]
[1643977932676,0.00101835,38018.0,38017.0,0.696689]
[1643977932908,0.00101835,38018.0,38017.0,0.346689]
[1643977933108,0.001,38026.0,38017.0,0.58081156]
[1643977933308,0.001,38026.0,38024.0,0.07774995]
[1643977941609,0.001,38026.0,38013.0,0.26687519]
[1643977941610,0.31667561,38026.0,38013.0,0.26687519]
[1643977941809,0.31667561,38026.0,38012.0,123.3325904]
[1643977941810,0.31139807,38025.0,38012.0,123.3325904]
[1643977942005,0.32139807,38025.0,38012.0,123.3325904]
[1643977942204,0.42139807,38025.0,38012.0,123.3325904]
[1643977942405,0.01,38013.0,38012.0,122.72897709]
[1643977942607,0.01,38013.0,38012.0,122.99706077]
[1643977943709,0.01,38013.0,38012.0,122.4465784]
[1643977944556,0.01,38013.0,38012.0,122.71152548]
[1643977945957,0.01,38013.0,38012.0,123.10821448]
[1643977946157,0.01,38013.0,38012.0,122.76152548]
[1643977946358,0.01,38013.0,38012.0,123.10821448]
[1643977946557,0.01,38013.0,38012.0,122.76152548]
[1643977946758,0.01,38013.0,38012.0,123.10821448]
[1643977947820,0.065774,38021.0,38012.0,122.4965784]
[1643977947821,0.00101831,38018.0,38012.0,122.4965784]
[1643977948015,0.00101831,38018.0,38017.0,0.05]
[1643977948216,0.00101831,38018.0,38017.0,0.29948001]
[1643977948816,0.065775,38020.0,38017.0,0.29948001]
[1643977949016,0.00101834,38019.0,38018.0,0.07808105]
[1643977949915,0.065775,38020.0,38018.0,0.07808105]
[1643977950418,0.06679333,38020.0,38018.0,0.07808105]
[1643977951218,0.065775,38020.0,38018.0,0.07808105]
[1643977952558,0.065775,38020.0,38019.0,0.05]
[1643977952957,0.00101832,38021.0,38019.0,0.05]
[1643977953559,0.065772,38022.0,38019.0,0.05]
[1643977953759,0.06679031,38022.0,38021.0,0.05]
[1643977954365,0.06679031,38022.0,38018.0,0.07808105]
[1643977954559,0.06679031,38022.0,38021.0,0.05]
[1643977954764,0.065772,38022.0,38020.0,0.05]
[1643977956416,0.00101829,38023.0,38020.0,0.05]
[1643977956615,0.00101829,38023.0,38022.0,0.05]
[1643977957217,0.38347249,38025.0,38022.0,0.05]
[1643977957419,0.00101827,38024.0,38022.0,0.05]
[1643977958418,0.38347249,38025.0,38022.0,0.05]
[1643977958617,0.38449075,38025.0,38022.0,0.05]
[1643977959659,0.38347249,38025.0,38022.0,0.05]
[1643977959859,0.38449075,38025.0,38022.0,0.05]
[1643977960859,0.38347249,38025.0,38022.0,0.05]
[1643977961061,0.38449075,38025.0,38024.0,0.09573077]
[1643977962063,0.38347249,38025.0,38024.0,0.09573077]
[1643977962666,0.38347249,38025.0,38022.0,0.05]
[1643977963504,0.38449075,38025.0,38022.0,0.05]
[1643977963904,0.38449075,38025.0,38024.0,0.0858768]
[1643977964106,0.38449075,38025.0,38022.0,0.05]
[1643977964307,0.38347249,38025.0,38022.0,0.05]
[1643977964705,0.38449075,38025.0,38022.0,0.05]
[1643977965308,0.38449075,38025.0,38020.0,0.05]
[1643977965507,0.06678626,38025.0,38020.0,0.05]
[1643977965709,0.065768,38025.0,38022.0,0.05]
[1643977965908,0.00101827,38024.0,38022.0,0.05]
[1643977966556,0.00101827,38024.0,38023.0,0.08802918]
[1643977966751,0.39408175,38025.0,38023.0,0.08802918]
[1643977966951,0.39510001,38025.0,38023.0,0.08802918]
[1643977967960,0.39408175,38025.0,38023.0,0.08802918]
[1643977968451,0.39408175,38025.0,38022.0,0.05]
[1643977969552,0.39510001,38025.0,38023.0,0.09246336]
[1643977970152,0.39510001,38025.0,38023.0,0.37200028]
[1643977970404,0.39408175,38025.0,38023.0,0.37200028]
[1643977970807,0.39408175,38025.0,38023.0,0.09246336]
[1643977972406,0.065768,38025.0,38020.0,0.30892137]
[1643977973008,0.00101827,38024.0,38020.0,0.30892137]
[1643977973211,0.00101827,38024.0,38020.0,0.22726424]
[1643977973212,0.05101827,38024.0,38020.0,0.22726424]